Workbook

Sheet Plantilla
A1: Confección de Cisterna, Caseta de bomba y Adecuación Eléctrica
A2: Recinto Eugenio María de Hostos
A3: Plantilla de Presupuesto
A4: Datos Generales
B7: Espacio para poner logo, nombre y RNC compañía
E8: Versión: 2.0
E10: Fecha:
A12: Concepto I:Caseta de Bombas
A14: No | B14: Descripción | C14: UD | D14: Cantidad | E14: PU | F14: Valor | G14: Valor Partida
A15: 1 | B15: PRELIMINARES | G15: =SUM(F16:F21) -> 0
A16: =+A15+0.01 -> 1.01 | B16: Replanteo | C16: PA | D16: 1 | F16: =+E16*D16 -> 0
A17: =+A16+0.01 -> 1.02 | B17: Equipos de protección personal y sanitarios | C17: PA | D17: 1 | F17: 0
A18: 1.03 | B18: Señalización y rotulación en obra. Letreros "NO PASE, DESVIO" etc.. | C18: ud | D18: 6 | F18: 0
A19: 1.04 | B19: Corte de arboles | C19: ud | D19: 8 | F19: 0
A20: =+A19+0.01 -> 1.05 | B20: Valla de protección 7 pies alt. en madera y malla de vinyl lumínico, postes 2x4 @ 3mts. Y 2 líneas de correas e 1x4 | C20: ML | D20: 90 | F20: 0
A21: 1.06 | B21: Movilización de furgones existentes dentro del recinto hacia área de parqueo | C21: ud | D21: 3 | F21: 0
A23: 2 | B23: MOVIMIENTO DE TIERRRAS | G23: =SUM(F24:F26) -> 0
A24: =+A23+0.01 -> 2.01 | B24: Remoción de capa vegetal 0.30mts | C24: m³ | D24: 172.8 | F24: =E24*D24 -> 0
A25: =+A24+0.01 -> 2.02 | B25: Relleno compactado "Caliche" | C25: m³ | D25: 190.08 | F25: =E25*D25 -> 0
A26: =+A25+0.01 -> 2.03 | B26: Bote de material sobrante producto de las excavaciones y demoliciones | C26: m³ | D26: 290 | F26: =E26*D26 -> 0
A28: 3 | B28: HORMIGON ARMADO | G28: =SUM(F29:F41) -> 0
A29: =+A28+0.01 -> 3.01 | B29: Excavación de zapatas de muros. Excavación roca con compresor. | C29: m³ | D29: 4.93 | F29: =E29*D29 -> 0
A30: =+A29+0.01 -> 3.02 | B30: Zapatas horm. Armado. blocks de 6",F'c 240kg/cm² ,de 0.45x0.25mts , 3 Ø3/8, Ø3/8"@0.25. | C30: m³ | D30: 2.77 | F30: =E30*D30 -> 0
A31: 3.03 | B31: Losa de piso de 10 cm. en concreto F'c 180kg/cm², con malla electro-soldada D2.3 150 x 150 mm. | C31: m² | D31: 7.28 | F31: 0
A32: 3.04 | B32: Mezcla pulido de piso con mortero de cemento 1:2 | C32: m² | D32: 7.28 | F32: 0
A33: 3.05 | B33: Losa de techo en H.A F'c 180kg/cm²,H= 0.12mts,Ø3/8"@0.20 A.D | C33: m³ | D33: 1.74 | F33: 0
A34: 3.06 | B34: Muros de blocks de 6", bastones 3/8"@0.60 | C34: m² | D34: 28.05 | F34: 0
A35: 3.07 | B35: Empañetado exterior | C35: m² | D35: 28.05 | F35: 0
A36: 3.08 | B36: Empañetado interior y techo | C36: m² | D36: 40.36 | F36: 0
A37: 3.09 | B37: Fino de cemento para techos con mortero 1:2 | C37: m² | D37: 13.65 | F37: 0
A38: 3.1 | B38: Zabaletas en cemento con mortero 1:2 | C38: ml | D38: 15.12 | F38: 0
A39: 3.11 | B39: H.A en dinteles 0.15x0.20mts, ,F'c 210kg/cm² . 4 de Ø1/2", Est Ø 3/8"@0.20cms | C39: m³ | D39: 0.17 | F39: 0
A40: 3.12 | B40: H.A en col. De amarre 0.15X0.30mts,F'c 210kg/cm²,4 de Ø1/2", Est Ø 3/8"@0.20cms | C40: m³ | D40: 0.5 | F40: 0
A41: 3.13 | B41: Bloques ornamentales 0.20x0.40 | C41: ud | D41: 8 | F41: 0
A43: 4 | B43: INSTALACIONES ELECTRICAS | G43: =SUM(F44:F49) -> 0
A44: =+A43+0.01 -> 4.01 | B44: Salida para Iluminación Cenital en Tub. PVC 1/2" SDR-26 | C44: ud | D44: 2 | F44: =E44*D44 -> 0
A45: =+A44+0.01 -> 4.02 | B45: Salida para tomacorriente doble uso normal, 15amps, 120v, color blanco, tapa sin tornillos instalado a 0.40mt snpt en Tub. PVC 1/2" SDR-26 | C45: ud | D45: 2 | F45: 0
A46: 4.03 | B46: Salida para interruptor modular doble a ser instalado a 1.20mts snpt, color blanco en Tub. PVC 1/2" SDR-26 | C46: ud | D46: 1 | F46: 0
A47: 4.04 | B47: Alimentador A07 trifásico desde PB1 hasta PCB. | C47: pl | D47: 78 | F47: 0
A48: 4.05 | B48: Panel de distribución "PCB" en cuarto de bombas | C48: pa | D48: 1 | F48: 0
A49: 4.06 | B49: Conexión eléctrica de caseta a bomba de pozo. Incluye zanja(0.40x0.060), cama de arena, relleno,tub. 1 1/2" sdr-26, 2 thnn-12,1-thnn 14 | C49: pl | D49: 160 | F49: 0
A51: 5 | B51: MISCELANEOS | G51: =SUM(F52:F56) -> 0
A52: =+A51+0.01 -> 5.01 | B52: Pintura satinada | C52: m² | D52: 64.65 | F52: =E52*D52 -> 0
A53: 5.02 | B53: Impermeabilizante de techos, lona Asfáltica lisa, de 4.5 mm, longitud del rollo: 10m, peso aprox. Del rollo: 49.4 kg. Solape mínimo de 10 cm transversal y 25 cm longitudinal. 10 años de garantía. | C53: m² | D53: 14.95 | F53: 0
A54: 5.03 | B54: Puertas en perfiles de acero negro, de 2x2 con portacandado, aplicar una mano de antióxido y una mano de mant. Industrial, puerta de 1.00mts x 2.10mts | C54: ud | D54: 1 | F54: 0
A55: 5.04 | B55: Bote de escombros | C55: pa | D55: 1 | F55: 0
A56: 5.05 | B56: Limpieza continua y final | C56: pa | D56: 1 | F56: 0
B58: SUBTOTAL CONCEPTO I | F58: =SUM(G15:G51) -> 0
A61: Concepto II: Cisterna de 11.00 X 7.40X 4.10
A63: 6 | B63: EXCAVACIONES | G63: =SUM(F64:F67) -> 0
A64: =+A63+0.01 -> 6.01 | B64: Excavación roca con compresor (70%) del total | C64: m³ | D64: 534 | F64: =E64*D64 -> 0
A65: =+A64+0.01 -> 6.02 | B65: Relleno de reposición compactado | C65: m³ | D65: 291.6 | F65: =E65*D65 -> 0
A66: 6.03 | B66: Bote de Material (40% esponjamiento) | C66: m³ | D66: 748.44 | F66: 0
A67: 6.04 | B67: Excavación roca con compresor (70%) del total, para tuberías de agua soterradas | C67: m³ | D67: 145.83 | F67: 0
A69: 7 | B69: HORMIGON ARMADO | G69: =SUM(F70:F76) -> 0
A70: =A69+0.01 -> 7.01 | B70: H.A F'c 240kg/cm², en zapata perimetral de 0.80 x 0.30 mts, cangrejos de Ø 1/2 @ 20 cm A.D | C70: m³ | D70: 8.64 | F70: =E70*D70 -> 0
A71: =A70+0.01 -> 7.02 | B71: H.A F'c 240kg/cm², en muro perimetral, varillas de Ø 1/2 @ 20 cm vertical y varillas de Ø 3/8 @ 20 cm horizontal (espesor 20cms) | C71: m³ | D71: 34.78 | F71: =E71*D71 -> 0
A72: 7.03 | B72: H.A F'c 240kg/cm² en columnas de 30 cm x 30 cm 4 Ø3/4 + 4 Ø1/2 , estribos de Ø 3/8 @15 cm, | C72: m³ | D72: 0.38 | F72: 0
A73: 7.04 | B73: H.A F'c 240kg/cm², Losa Techo H=15cms,Ø 3/8" @ 15cm A.D | C73: m³ | D73: 13.43 | F73: 0
A74: 7.05 | B74: H.A F'c 240kg/cm², Losa fondo H=15cms,Ø 3/8" @ 20cm A.D | C74: m³ | D74: 11.14 | F74: 0
A75: 7.06 | B75: H.A F'c 240kg/cm² en Viga de carga, de 25cms x 45cms, 6 Ø3/4 , estribos de Ø 3/8 @15 cm, | C75: m³ | D75: 1.1 | F75: =E75*D75 -> 0
A76: =A75+0.01 -> 7.07 | B76: Hormigón de limpieza F'c 140kg/cm² | C76: m³ | D76: 4.08 | F76: 0
A78: 8 | B78: TERMINACION DE SUPERFICIE | G78: =SUM(F79:F85) -> 0
A79: =+A78+0.01 -> 8.01 | B79: Empañetado pulido muros y piso | C79: m² | D79: 296.24 | F79: =E79*D79 -> 0
A80: =+A79+0.01 -> 8.02 | B80: Zabaleta Pared Interna | C80: ml | D80: 36.96 | F80: =E80*D80 -> 0
A81: 8.03 | B81: Careteo en superficie de muros y losas | C81: m² | D81: 296.24 | F81: 0
A82: 8.04 | B82: Suministro. Y Colocación de Tapa en aluminio 0.80x0.80cms | C82: ud | D82: 1 | F82: 0
A83: 8.05
A84: 8.06 | B84: Fino de fondo mortero 1:2 | C84: m² | D84: 81.62 | F84: 0
A85: 8.07 | B85: Impermeabilizante tipo cementicio en muros y losa de fondo de cisterna | C85: m² | D85: 377.86 | F85: 0
A87: 9 | B87: EQUIPO DE BOMBEO | G87: =SUM(F88:F101) -> 0
A88: =+A87+0.01 -> 9.01 | B88: Suministro y colocación de bomba(he) de 7.5 hp, Trifasica,de 208-230/460v Construida en hierro fundido, succión y descarga de 1-1/2"., Con capacidad para 84 gpm max y 197 pies de tdh máx. Acoplada a motor de 7.5 hp, 3 fases, 230/460 volt. | C88: ud | D88: 2 | F88: =E88*D88 -> 0
A89: =+A88+0.01 -> 9.02 | B89: Panel de control de presión constante doble weg 7.5hp, 230 v. Variador de velocidad WG. Controlador programable WEG.Transductor de presión. Abanico de enfriamiento.Breaker para control General. Caja a prueba de polvo. Protección térmica, guarda motores. Contactores para cada bomba, protección contra perdida de fase. Luces piloto. Selectores de tres posiciones. | C89: pa | D89: 1 | F89: =E89*D89 -> 0
A90: 9.03 | B90: Tanque precargado en hierro, membrana reemplazable de fácil instalación, Con capacidad para 85 gls equivalente a 250 gls. en tanque convencional, mod. ps-85/wm-25. dimensión: diámetro 2 | C90: ud | D90: 1 | F90: 0
A91: 9.04 | B91: Flota eléctrica 1nc/1no. Interruptor tipo flota para protección de trabajo en seco, con contactos 1 n.c. 1 n.o. | C91: ud | D91: 2 | F91: 0
A92: 9.05 | B92: Pesa para flota de nivel. cat. 1002230 | C92: ud | D92: 2 | F92: 0
A93: 9.06 | B93: Manómetro diámetro de esfera 2.5 pulgadas conexión por debajo rango de 0-100 psi. | C93: ud | D93: 2 | F93: 0
A94: 9.07 | B94: Switch de presión con rango de 40-60 psi, diferencial ajustable. | C94: ud | D94: 2 | F94: 0
A95: 9.08 | B95: Tuberías y piezas misceláneas PPR PN-20 | C95: pa | D95: 1 | F95: 0
A96: 9.09 | B96: Tubería soterrada de 3" PPR PN-20 CON TERMO FUSION Para uso futuro + 10% desp. Incluye tubería, instalación, excavación, disposición de material, cama de arena y relleno. En caso de cruce con tubería eléctrica, el agua potable deberá pasar por debajo, al menos 20 cm. | C96: ml | D96: 145 | F96: 0
A97: 9.1 | B97: Tubería soterrada de 2" PPR PN-20 CON TERMO FUSION para uso futuro + 10% desp. Incluye tubería, instalación, excavación, disposición de material, cama de arena y relleno. | C97: ml | D97: 6 | F97: 0
A98: 9.11 | B98: Tubería soterrada de 1 1/ 2" PPR PN-20 CON TERMO FUSION para uso futuro + 10% desp. Incluye tubería, instalación, excavación, disposición de material, cama de arena y relleno. | C98: ml | D98: 24 | F98: 0
A99: 9.12 | B99: Válvula de Control en acometidas interiores Ø3" bronce con rosca hembra | C99: ud | D99: 4 | F99: 0
A100: 9.13 | B100: Registros en bloques de 6" 0.60x0.60 cms | C100: ud | D100: 4 | F100: 0
A101: 9.14 | B101: Mano de obra | C101: pa | D101: 1 | F101: 0
B102: Nota: Los equipos deben de tener mínimo 2 años de garantía en piezas y servicios
A104: 10 | B104: POZO Y BOMBA SUMERGIBLE | G104: =SUM(F105:F112) -> 0
A105: =+A104+0.01 -> 10.01 | B105: Perforación de pozo en 10" con camisa en tuberías P.V.C SDR-26 8", 30 mts de profundidad | C105: ud | D105: 1 | F105: =E105*D105 -> 0
A106: =+A105+0.01 -> 10.02 | B106: Análisis Físico - Químico y Bacteriológico completo, en un laboratorio certificado de la ciudad. | C106: pa | D106: 1 | F106: =E106*D106 -> 0
A107: 10.03 | B107: Mano de obra de instalación y puesta en marcha | C107: pa | D107: 1 | F107: 0
A108: 10.04 | B108: Suministro e instalación de electrobomba sumergible, Descarga de 2",capacidad 42 gpm, mod. 3510 2HP MONOFASICO 230V. Motor Incluido, caja de control Piezas y tuberías para instalación Alambre de goma 12/3 , flota eléctrica y pesa para flotas de nivel. Incluir prueba de bombeo : aforo cuantitativo 48hrs | C108: ud | D108: 1 | F108: 0
A109: 10.05 | B109: Tubería soterrada de 2" PPR PN-20 CON TERMO FUSION para bomba sumergible | C109: ml | D109: 33 | F109: 0
A110: 10.06 | B110: Acometida domiciliaria de 2" | C110: pa | D110: 1 | F110: 0
A111: 10.07 | B111: Piezas varias | C111: pa | D111: 1 | F111: =E111*D111 -> 0
A112: 10.08 | B112: Conexión desde registros a edificios existentes. El contratista debe verificar con personal de mantenimiento de la institución el punto de conexión desde el registro hasta la edificación. Considerar las adecuaciones necesarias para la conexión. | C112: ud | D112: 4 | F112: =E112*D112 -> 0
B113: Nota: Los equipos deben de tener mínimo 2 años de garantía en piezas y servicios
B115: SUBTOTAL CONCEPTO II | F115: =SUM(G63:G114) -> 0
A117: Concepto III:Confección de cancha de baloncesto
A119: 1 | B119: PRELIMINARES | G119: =SUM(F120:F122) -> 0
A120: =+A119+0.01 -> 1.01 | B120: Demolición de cancha y columnas con equipos menores(incluye: losa, columnas, tableros, etc.) | C120: M³ | D120: 66.33 | F120: =+E120*D120 -> 0
A121: 1.02 | B121: Excavación en roca zapata de columnas | C121: M³ | D121: 4.35 | F121: 0
A122: =+A121+0.01 -> 1.03 | B122: Bote de material sobrante | C122: M³ | D122: 79.6 | F122: =E122*D122 -> 0
A124: 2 | B124: HORMIGÓN ARMADO | G124: =SUM(F125:F127) -> 0
A125: =+A124+0.01 -> 2.01 | B125: H.A F'c 240kg/cm², en zapata de columnas de 1.20 x 0.50 mts, cangrejos de Ø 1/2 @ 20 cm A.D | C125: M³ | D125: 1.12 | F125: =E125*D125 -> 0
A126: 2.02 | B126: H.A F'c 210kg/cm², Losa de piso, con malla electrosoldada D2.3 x D2.3 x 100x100 | C126: M² | D126: 576 | F126: =E126*D126 -> 0
A127: 2.03 | B127: H.A F'c 240kg/cm² en columnas para canchas con Ø 3/8 @10 cm | C127: M³ | D127: 1.05 | F127: 0
A129: 3 | B129: MISCELANEOS | G129: =SUM(F130:F137) -> 0
A130: =+A129+0.01 -> 3.01 | B130: Suministro y colocación de tablero de básquetbol de 72", en fibra de vidrio, con aro con spring y mallas | C130: UD | D130: 2 | F130: =E130*D130 -> 0
A131: =+A130+0.01 -> 3.02 | B131: Confección de bancas en hormigón para cancha | C131: UD | D131: 8 | F131: 0
A132: 3.03 | B132: Pintura de cancha en piso | C132: PA | D132: 1 | F132: 0
A133: 3.04 | B133: Confección de jardinera con grama verde y grava decorativa blanca | C133: PA | D133: 1 | F133: 0
A134: 3.05 | B134: Poste metálico cuadrado 6"x6"x30' con fundación en concreto para luminaria | C134: UD | D134: 4 | F134: 0
A135: 3.06 | B135: Luminaria 120 voltios 100w led tipo shoe box para instalación en muro o poste. | C135: UD | D135: 4 | F135: 0
A136: 3.07 | B136: Bote de escombros | C136: PA | D136: 1 | F136: 0
A137: 3.08 | B137: Limpieza continua y final | C137: PA | D137: 1 | F137: 0
B139: SUBTOTAL CONCEPTO III | F139: =SUM(G87:G137) -> 0
A141: Concepto IV: Alimentación eléctrica
A143: 14 | B143: Alimentación eléctrica | G143: =SUM(F145:F156) -> 0
A145: =A143+0.01 -> 14.01 | B145: Edificio de aulas | C145: Pies | D145: 300 | F145: =+E145*D145 -> 0
B146: Alimentador desde "Casa de planta" hasta "Edificio de aulas", compuesto por: 2C - THHN #4/0 x Fase (trifásico) 2C - THHN #3/0 Neutro 1C - THHN #1/0 Tierra 1T - 3"Ø PVC.
B147: Incluye materiales, herramientas, equipos y mano de obra
A149: =A145+0.01 -> 14.02 | B149: Edificio Cerema | C149: Pies | D149: 350 | F149: =+E149*D149 -> 0
B150: Alimentador desde "Casa de planta" hasta "Cerema", compuesto por: 4C - THHN #4/0 x Fase (trifásico) 4C - THHN #3/0 Neutro 2C - THHN #1/0 Tierra 2T - 3"Ø PVC.
B151: Incluye materiales, herramientas, equipos y mano de obra
A153: =A149+0.01 -> 14.03 | B153: Excavación roca con compresor (70%) del total, para tuberías de alimentación eléctrica. De 60 cm x 35 cm x 1.00 m | C153: m³ | D153: 50 | F153: =+E153*D153 -> 0
A154: =+A153+0.01 -> 14.04 | B154: Relleno de reposición compactado | C154: m³ | D154: 50 | F154: 0
A155: =+A154+0.01 -> 14.05 | B155: Tubería SDR 26 de 3 Pulg. Para disponibilidad dentro de registros. Debe incluir materiales, equipos y mano de obra | C155: pies | D155: 1200 | F155: 0
A156: 14.06 | B156: Registro eléctrico. Elaborado con block de 6" y bastones de 3/8" @ 0.40. Con terminación interior en todas sus caras. Losa de piso y tapa de 10 cm de espeso con 3/8" @ 0.15 A.D. Dimensión aprox. 90 cm x 90 cm x 80 cm de profundidad | C156: ud | D156: 5 | F156: 0
A158: 15 | B158: MISCELANEOS | G158: =SUM(F160:F164) -> 0
A160: =+A158+0.01 -> 15.01 | B160: Limpieza continua y final | C160: pa | D160: 1 | F160: =+E160*D160 -> 0
A161: =+A160+0.01 -> 15.02 | B161: Bote de escombros | C161: pa | D161: 1 | F161: =+E161*D161 -> 0
A162: 15.03 | B162: Reparación de calles con asfalto, posterior a la confección de zanjas | C162: m² | D162: 30 | F162: 0
A163: 15.04 | B163: Reconstrucción de contenes posterior a la confección de zanjas. | C163: ml | D163: 100 | F163: 0
A164: 15.05 | B164: Reparación de aceras posterior a la confección de zanjas. | C164: m² | D164: 200 | F164: 0
B166: SUBTOTAL CONCEPTO IV | F166: =SUM(G143:G165) -> 0
B169: SUBTOTAL GENERAL | F169: =+F166+F115+F58 -> 0
B170: IMPREVISTO 10% (CONTRA PRESENTACION DE FACTURA) | F170: =+F169*0.1 -> 0
B171: SUBTOTAL + IMPREVISTOS | F171: =+F170+F169 -> 0
A173: 19 | B173: COSTOS INDIRECTOS | G173: =SUM(F174:F180) -> 0
A174: =+A173+0.01 -> 19.01 | B174: Dirección técnica y responsabilidad | E174: 0.1 | F174: =$F$171*E174 -> 0
A175: =+A174+0.01 -> 19.02 | B175: Gastos administrativos | F175: =$F$171*E175 -> 0
A176: 19.03 | B176: Transporte | F176: 0
A177: 19.04 | B177: Póliza todo riesgo (contra presentación de factura) | F177: 0
A178: 19.05 | B178: Seguros y fianzas (contra presentación de factura) | F178: 0
A179: 19.06 | B179: Ley 6-86 sobre Liquidación y Prestaciones Laborales | E179: 0.01 | F179: 0
A180: 19.07 | B180: CODIA (1 X 1000) | E180: 0.001 | F180: 0
B182: TOTAL GENERAL | F182: =F171+G173 -> 0
A184: Presupuesto preparado por: | D184: Revisado y autorizado por:
A187: (nombra y firma del responsable) | D187: (nombre y firma del responsable)

Sheet ESPECIFICACIONES
B4: Tabla de especificaciones de materiales
B6: 1. LUMINARIAS Y ACCESORIOS ELECTRICOS
B7: NOMBRE | C7: ESPECIFICACION | D7: COLOR | E7: IMAGEN DE REFERENCIA
B8: Interruptor Sencillo | C8: Interruptor simple 120 V, con tapa decorativa color blanco. Certificación UL | D8: Placas y módulos de plástico blanco.
B9: Tomacorrientes | C9: Tomacorriente 120 V, NEMA 5-15R, con punto de tierra, tapa plástica color blanco. Certificación UL | D9: Placas y módulos de plástico blanco.
B10: Bomba | C10: bomba(he) de 7.5 hp, Trifasica,de 208-230/460v Construida en hierro fundido, succión y descarga de 1-1/2"., Con capacidad para 84 gpm max y 197 pies de tdh máx. Acoplada a motor de 7.5 hp, 3 fases, 230/460 volt. Mínimo 2 años de garantía | D10: Color verde
B11: Panel de control de bomba | C11: Panel de control de presión constante doble weg 7.5hp, 230 v. Variador de velocidad WG. Controlador programable WEG.Transductor de presión. Abanico de enfriamiento.Breaker para control General. Caja a prueba de polvo. Protección térmica, guarda motores. Contactores para cada bomba, protección contra perdida de fase. Luces piloto. Selectores de tres posiciones. Mínimo 2 años de garantía | D11: Carcasa gris
B12: Tanque de hierro | C12: Tanque precargado en hierro, membrana reemplazable de fácil instalación, Con capacidad para 85 gls equivalente a 250 gls. en tanque convencional, mod. ps-85/wm-25. dimensión: diámetro 2 Mínimo 2 años de garantía | D12: Color azul
B13: Flota eléctrica | C13: Flota eléctrica 1nc/1no. Interruptor tipo flota para protección de trabajo en seco, con contactos 1 n.c. 1 n.o. Mínimo 2 años de garantía | D13: Color gris
B14: Pesa para flota | C14: Pesa para flota de nivel. cat. 1002230 Mínimo 2 años de garantía | D14: Cubierta color gris
B15: Manómetro | C15: Manómetro diámetro de esfera 2.5 pulgadas conexión por debajo rango de 0-100 psi. Mínimo 2 años de garantía | D15: Acabado cromado
B16: Switch de presión | C16: Switch de presión con rango de 40-60 psi, diferencial ajustable. Mínimo 2 años de garantía | D16: Color negro
B17: Bomba sumergible | C17: electrobomba sumergible, Descarga de 2",capacidad 42 gpm, mod. 3510 2HP MONOFASICO 230V. Motor Incluido, caja de control Piezas y tuberías para instalación Alambre de goma 12/3 , flota eléctrica y pesa para flotas de nivel. Incluir prueba de bombeo : aforo cuantitativo 48hrs Mínimo 2 años de garantía | D17: Acabado cromado
B18: Luces en cancha | C18: Luminaria 120 voltios 100w led tipo shoe box para instalación en muro o poste. Mínimo 2 años de garantía | D18: Carcasa negra
B20: 2. MISCELANEOS
B21: NOMBRE | C21: ESPECIFICACION | D21: TERMINACION | E21: IMAGEN DE REFERENCIA
B22: Tablero cancha | C22: Tablero de Basketball 72" fiberglass, con aro con spring heavy duty y malla | D22: Blanco
